fUST/lending_fUST_20251022
["ID","MTS","AMOUNT","RATE_DAILY","PERIOD"]
[391995615,1761069040881,-500.0,0.00025163,2]
[391995616,1761069040891,-500.0,0.00025163,2]
[391995617,1761069040901,-500.0,0.00025163,2]
[391995618,1761069040911,-655.0,0.00025163,2]
[391995619,1761069040920,-152.56663583,0.00025163,2]
[391995620,1761069041094,-500.0,0.00025163,2]
[391995621,1761069041104,-500.0,0.00025163,2]
[391995622,1761069041114,-500.0,0.00025163,2]
[391995623,1761069041123,-500.0,0.00025163,2]
[391995624,1761069041132,-2131.0,0.00025163,2]
[391995625,1761069041142,-500.0,0.00025163,2]
[391995626,1761069041152,-500.0,0.00025164,7]
[391995627,1761069041162,-500.0,0.00025218,2]
[391995628,1761069041171,-500.0,0.00025218,2]
[391995629,1761069041181,-500.0,0.00025218,2]
[391995630,1761069041191,-500.0,0.00025218,2]
[391995631,1761069041201,-533.71054787,0.00025218,2]
[391995632,1761069041211,-500.0,0.00025218,2]
[391995633,1761069041220,-500.0,0.00025218,2]
[391995634,1761069041231,-500.0,0.00025218,2]
[391995635,1761069041241,-196.06508398,0.00025218,2]
[391995636,1761069041251,-500.0,0.00025218,2]
[391995637,1761069041260,-655.0,0.00025218,2]
[391995638,1761069041271,-500.0,0.00025218,2]
[391995639,1761069041281,-618.85092125,0.00025218,2]
[391995640,1761069041291,-500.0,0.00025218,2]
[391995641,1761069041300,-500.0,0.00025218,2]
[391995642,1761069041309,-2131.0,0.00025218,2]
[391995643,1761069041319,-500.0,0.00025218,2]
[391995644,1761069041332,-1879.54397836,0.00025263,2]
[391995645,1761069041342,-500.0,0.00025273,2]
[391995646,1761069041352,-500.0,0.00025273,2]
[391995647,1761069041362,-370.15978702,0.00025273,2]
[391995648,1761069041373,-500.0,0.00025273,2]
[391995649,1761069041383,-556.65179173,0.00025273,2]
[391995650,1761069041392,-500.0,0.00025273,2]
[391995651,1761069041403,-500.0,0.00025273,2]
[391995652,1761069041414,-655.0,0.00025273,2]
[391995653,1761069041423,-500.0,0.00025273,2]
[391995654,1761069041433,-500.0,0.00025273,2]
[391995655,1761069041443,-500.0,0.00025273,2]
[391995656,1761069041452,-2131.0,0.00025273,2]
[391995657,1761069041462,-500.0,0.00025273,2]
[391995658,1761069041471,-160.0,0.0002529,2]
[391995659,1761069041481,-1386.1661655,0.00025301,2]
[391995660,1761069041491,-500.0,0.00025327,2]
[391995661,1761069041501,-500.0,0.00025327,2]
[391995662,1761069041510,-500.0,0.00025327,2]
[391995663,1761069041520,-500.0,0.00025327,2]
[391995664,1761069041531,-655.0,0.00025327,2]
[391995665,1761069041540,-500.0,0.00025327,2]
[391995666,1761069041550,-500.0,0.00025327,2]
[391995667,1761069041562,-500.0,0.00025327,2]
[391995668,1761069041574,-2131.0,0.00025327,2]
[391995669,1761069041585,-402.79035286,0.00025327,2]
[391995670,1761069041595,-500.0,0.00025373,2]
[391995671,1761069041606,-636.64497601,0.00025373,2]
[391995672,1761069041616,-500.0,0.00025373,2]
[391995673,1761069041626,-500.0,0.00025373,2]
[391995674,1761069041636,-500.0,0.00025373,2]
[391995675,1761069041646,-500.0,0.00025373,2]
[391995676,1761069041659,-500.0,0.00025373,2]
[391995677,1761069041668,-500.0,0.00025373,2]
[391995678,1761069041680,-500.0,0.00025373,2]
[391995679,1761069041690,-511.795261,0.00025373,2]
[391995680,1761069041700,-500.0,0.00025373,2]
[391995681,1761069041712,-500.0,0.00025373,2]
[391995682,1761069041723,-328.4784565,0.00025382,2]
[391995683,1761069041733,-500.0,0.00025382,2]
[391995684,1761069041743,-152.33685571,0.00025382,2]
[391995685,1761069041755,-500.0,0.00025382,2]
[391995686,1761069041764,-655.0,0.00025382,2]
[391995687,1761069041774,-500.0,0.00025382,2]
[391995688,1761069041784,-500.0,0.00025382,2]
[391995689,1761069041795,-500.0,0.00025382,2]
[391995690,1761069041804,-2131.0,0.00025382,2]
[391995691,1761069041814,-563.77465499,0.00025385,2]
[391995692,1761069041824,-364.0,0.00025408,2]
[391995693,1761069041833,-500.0,0.00025437,2]
[391995694,1761069041842,-500.0,0.00025437,2]
[391995695,1761069041853,-655.0,0.00025437,2]
[391995696,1761069041862,-500.0,0.00025437,2]
[391995697,1761069041872,-500.0,0.00025437,2]
[391995698,1761069041883,-500.0,0.00025437,2]
[391995699,1761069041893,-2131.0,0.00025437,2]
[391995700,1761069041902,-500.0,0.00025438,7]
[391995701,1761069041912,-159.97751647,0.00025464,7]
[391995702,1761069041922,-206.33422799,0.00025467,2]
[391995703,1761069041932,-533.88981491,0.00025467,2]
[391995704,1761069041942,-500.0,0.00025492,2]
[391995705,1761069041951,-500.92512351,0.00025492,2]
[391995706,1761069041961,-655.0,0.00025492,2]
[391995707,1761069041970,-500.0,0.00025492,2]
[391995708,1761069041979,-500.0,0.00025492,2]
[391995709,1761069041991,-485.24766192,0.00025492,2]
[391995710,1761069042000,-2131.0,0.00025492,2]
[391995711,1761069042011,-1879.54397836,0.00025497,2]
[391995712,1761069042022,-1386.1661655,0.00025519,2]
[391995713,1761069042033,-1000.0,0.00025521,2]
[391995714,1761069042043,-445.64188472,0.00025521,2]
[391995715,1761069042052,-1000.0,0.00025521,2]
[391995716,1761069042062,-1000.0,0.00025521,2]
[391995717,1761069042072,-1000.0,0.00025521,2]
[391995718,1761069042082,-419.04301388,0.00025547,2]
[391995719,1761069042093,-655.0,0.00025547,2]
[391995720,1761069042103,-500.0,0.00025547,2]
[391995721,1761069042113,-500.0,0.00025547,2]
[391995722,1761069042123,-2131.0,0.00025547,2]
[391995723,1761069042133,-655.0,0.00025601,2]
[391995724,1761069042142,-500.0,0.00025601,2]
[391995725,1761069042153,-500.0,0.00025601,2]
[391995726,1761069042163,-2131.0,0.00025601,2]
[391995727,1761069042173,-1164.07573044,0.00025607,2]
[391995728,1761069042182,-438.0,0.00025648,2]
[391995729,1761069042193,-655.0,0.00025656,2]
[391995730,1761069042202,-500.0,0.00025656,2]
[391995731,1761069042212,-500.0,0.00025656,2]
[391995732,1761069042221,-2131.0,0.00025656,2]
[391995733,1761069042230,-380.9765768,0.00025668,2]
[391995734,1761069042240,-685.75783823,0.00025668,2]
[391995735,1761069042249,-1217.9059207,0.00025668,2]
[391995736,1761069042259,-655.0,0.00025711,2]
[391995737,1761069042268,-500.0,0.00025711,2]
[391995738,1761069042278,-500.0,0.00025711,2]
[391995739,1761069042287,-2131.0,0.00025711,2]
[391995740,1761069042297,-500.0,0.00025712,7]
[391995741,1761069042306,-655.0,0.00025766,2]
[391995742,1761069042315,-500.0,0.00025766,2]
[391995743,1761069042325,-500.0,0.00025766,2]
[391995744,1761069042339,-2131.0,0.00025766,2]
[391995745,1761069042348,-500.0,0.00025794,2]
[391995746,1761069042357,-500.0,0.00025794,2]
[391995747,1761069042367,-500.0,0.00025794,2]
[391995748,1761069042377,-500.0,0.00025794,2]
[391995749,1761069042386,-500.0,0.00025794,2]
[391995750,1761069042396,-500.0,0.00025794,2]
[391995751,1761069042407,-500.0,0.00025794,2]
[391995752,1761069042417,-500.0,0.00025794,2]
[391995753,1761069042427,-500.0,0.00025794,2]
[391995754,1761069042436,-500.0,0.00025794,2]
[391995755,1761069042445,-500.0,0.00025794,2]
[391995756,1761069042455,-500.0,0.00025794,2]
[391995758,1761069042465,-500.0,0.00025794,2]
[391995759,1761069042474,-153.0,0.00025798,2]
[391995760,1761069042483,-153.0,0.00025798,2]
[391995761,1761069042492,-153.0,0.00025801,2]
[391995762,1761069042502,-153.0,0.00025801,2]
[391995763,1761069042511,-153.0,0.0002581,2]
[391995764,1761069042520,-153.0,0.0002581,2]
[391995765,1761069042529,-153.0,0.00025814,2]
[391995766,1761069042539,-153.0,0.00025814,2]
[391995767,1761069042548,-655.0,0.00025821,2]
[391995768,1761069042557,-500.0,0.00025821,2]
[391995769,1761069042567,-302.0,0.00025821,2]
[391995770,1761069042577,-2131.0,0.00025821,2]
[391995771,1761069042586,-153.0,0.00025822,2]
[391995772,1761069042595,-153.0,0.00025822,2]
[391995773,1761069042606,-153.0,0.00025825,2]
[391995774,1761069042617,-153.0,0.00025825,2]
[391995775,1761069042626,-153.0,0.00025833,2]
[391995776,1761069042636,-153.0,0.00025833,2]
[391995777,1761069042646,-153.0,0.00025836,2]
[391995778,1761069042656,-153.0,0.00025836,2]
[391995779,1761069042666,-260.0,0.00025838,2]
[391995780,1761069042676,-153.0,0.00025843,2]
[391995782,1761069042685,-655.0,0.00025875,2]
[391995784,1761069042694,-500.0,0.00025875,2]
[391995786,1761069042702,-2131.0,0.00025875,2]
[391995788,1761069042712,-14914.23991158,0.0002589,2]
[391995790,1761069042721,-563.77465499,0.0002589,2]
[391995792,1761069042730,-155.0,0.0002589,18]
[391995794,1761069042740,-1879.54397836,0.00025911,2]
[391995796,1761069042749,-1000.0,0.00025921,2]
[391995798,1761069042758,-1000.0,0.00025921,2]
[391995799,1761069042767,-655.0,0.0002593,2]
[391995801,1761069042777,-2131.0,0.0002593,2]
[391995803,1761069042787,-1386.1661655,0.00025945,2]
[391995804,1761069042796,-500.0,0.00025973,2]
[391995805,1761069042805,-432.0784425,0.00025973,2]
[391995806,1761069042815,-500.0,0.00025973,2]
[391995807,1761069042824,-500.0,0.00025973,2]
[391995808,1761069042834,-655.0,0.00025985,2]
[391995810,1761069042845,-2131.0,0.00025985,2]
[391995812,1761069042854,-500.0,0.00025986,7]
[391995814,1761069042863,-10000.0,0.00026,2]
[391995816,1761069042872,-10000.0,0.00026,2]
[391995818,1761069042881,-10000.0,0.00026,2]
[391995819,1761069042890,-10000.0,0.00026,2]
[391995821,1761069042900,-8440.0,0.00026,2]
[391995823,1761069042909,-213.96859442,0.00026015,2]
[391995825,1761069042920,-553.64373807,0.00026015,2]
[391995827,1761069042929,-655.0,0.0002604,2]
[391995829,1761069042939,-2131.0,0.0002604,2]
[391995831,1761069042948,-1386.1661655,0.00026065,2]
[391995833,1761069042957,-1500.0,0.00026068,2]
[391995835,1761069042966,-1500.0,0.00026068,2]
[391995837,1761069042975,-1150.72786092,0.00026068,2]
[391995839,1761069042985,-1500.0,0.00026068,2]
[391995841,1761069042994,-655.0,0.00026094,2]
[391995843,1761069043003,-2131.0,0.00026094,2]
[391995845,1761069043012,-701.83681853,0.00026126,2]
[391995847,1761069043023,-670.61449093,0.00026149,2]
[391995849,1761069043032,-2141.79473155,0.00026149,2]
[391995851,1761069043042,-1680.0,0.00026163,2]
[391995853,1761069043051,-420.0,0.00026164,2]
[391995855,1761069043061,-1000.0,0.000262,2]
[391995857,1761069043070,-1000.0,0.000262,2]
[391995859,1761069043079,-1000.0,0.000262,2]
[391995861,1761069043089,-1000.0,0.000262,2]
[391995863,1761069043098,-1000.0,0.000262,2]
[391995864,1761069043108,-1000.0,0.000262,2]
[391995865,1761069043118,-1000.0,0.000262,2]
[391995866,1761069043127,-1000.0,0.000262,2]
[391995867,1761069043137,-1879.54397836,0.0002625,2]
[391995868,1761069043146,-500.0,0.0002626,7]
[391995869,1761069043157,-1680.0,0.00026284,2]
[391995870,1761069043166,-699.04599618,0.00026297,2]
[391995871,1761069043175,-1258.28279312,0.00026297,2]
[391995872,1761069043185,-2236.94718778,0.00026297,2]
[391995873,1761069043195,-3495.2299809,0.00026297,2]
[391995874,1761069043204,-5033.13117249,0.00026297,2]
[391995875,1761069043214,-6843.8001118,0.00026297,2]
[391995876,1761069043223,-1000.0,0.00026342,2]
[391995877,1761069043233,-1000.0,0.00026342,2]
[391995878,1761069043243,-1000.0,0.00026342,2]
[391995879,1761069043252,-434.02137684,0.00026342,2]
[391995880,1761069043265,-216.10483414,0.00026342,2]
[391995881,1761069043274,-1000.0,0.00026342,2]
[391995882,1761069043284,-1000.0,0.00026342,2]
[391995883,1761069043294,-1000.0,0.00026342,2]
[391995884,1761069043303,-1000.0,0.00026342,2]
[391995885,1761069043313,-1000.0,0.00026342,2]
[391995886,1761069043322,-1000.0,0.00026342,2]
[391995887,1761069043336,-1000.0,0.00026342,2]
[391995888,1761069043346,-1000.0,0.00026342,2]
[391995889,1761069043355,-1386.1661655,0.00026367,2]
[391995890,1761069043365,-360.0,0.00026386,2]
[391995891,1761069043375,-563.77465499,0.00026395,2]
[391995892,1761069043385,-550.21302897,0.00026458,2]
[391995893,1761069043394,-1500.0,0.00026468,2]
[391995894,1761069043403,-1500.0,0.00026468,2]
[391995895,1761069043414,-1000.0,0.00026521,2]
[391995896,1761069043423,-1000.0,0.00026521,2]
[391995897,1761069043432,-1000.0,0.00026521,2]
[391995898,1761069043442,-500.0,0.00026534,7]
[391995899,1761069043451,-221.88543242,0.00026563,2]
[391995900,1761069043461,-574.12855637,0.00026563,2]
[391995901,1761069043470,-1879.54397836,0.0002657,2]
[391995902,1761069043479,-150.0,0.00026573,2]
[391995903,1761069043489,-215.13971396,0.0002658,3]
[391995904,1761069043499,-860.55885582,0.0002658,3]
[391995905,1761069043509,-569.63231234,0.0002658,3]
[391995906,1761069043519,-1386.1661661,0.00026607,2]
[391995907,1761069043528,-2000.0,0.00026616,2]
[391995908,1761069043538,-2000.0,0.00026616,2]
[391995909,1761069043549,-2000.0,0.00026616,2]
[391995910,1761069043559,-354.01335826,0.000268,2]
[391995911,1761069043568,-151.0,0.000268,17]
[391995912,1761069043577,-500.0,0.00026808,7]
[391995913,1761069043587,-936.18798333,0.0002689,2]
[391995914,1761069043596,-435.29663285,0.0002689,2]
[391995915,1761069043605,-1500.0,0.0002689,2]
[391995916,1761069043615,-1500.0,0.0002689,2]
[391995917,1761069043624,-1500.0,0.0002689,2]
[391995918,1761069043637,-1500.0,0.0002689,2]
[391995919,1761069043646,-1500.0,0.0002689,2]
[391995920,1761069043655,-1500.0,0.0002689,2]
[391995921,1761069043665,-1500.0,0.0002689,2]
[391995922,1761069043674,-1500.0,0.0002689,2]
[391995923,1761069043686,-1500.0,0.0002689,2]
[391995924,1761069043695,-8820.26908008,0.000269,2]
[391995925,1761069043705,-14914.23991158,0.000269,2]
[391995926,1761069043715,-563.77465499,0.000269,2]
[391995927,1761069043726,-990.38345215,0.00026917,2]
[391995928,1761069043736,-460.0,0.00026934,2]
[391995929,1761069043745,-150.0,0.00026973,2]
[391995930,1761069043755,-500.0,0.00026973,2]
[391995931,1761069043764,-150.0,0.00026973,2]
[391995932,1761069043774,-1879.54397836,0.00026979,2]
[391995933,1761069043784,-1376.0669694,0.00026989,2]
[391995934,1761069043793,-353.6807092,0.00026989,2]
[391995935,1761069043803,-29575.0777405,0.00026989,2]
[391995936,1761069043812,-8816.0077215,0.00026989,2]
[391995937,1761069043822,-16915.8958052,0.0002699,2]
[391995938,1761069043831,-434560.99305238,0.00027,2]
[391995939,1761069043952,-1662.40991564,0.00027,2]
[391995940,1761069043964,-2901.67435086,0.00027,2]
[391995941,1761069044073,-585.86218153,0.00027,2]
[391995942,1761069044270,-5174.58884586,0.00027,2]
[391995943,1761069044287,-2769.77069258,0.00027,2]
[391995944,1761069044298,-15000.0,0.00027,2]
[391995945,1761069044309,-36498.44710881,0.00027,2]
[391995946,1761069044532,-1503.61,0.00026055,3]
[391995947,1761069044542,-250.0,0.00026612,2]
[391995948,1761069044552,-15926.10919528,0.00027,2]
[391995949,1761069044563,-275.05499835,0.00027,2]
[391995982,1761069046264,-322.0,0.00025142,2]
[391995984,1761069046274,-534.89,0.00026979,10]
[391995986,1761069046283,-29826.5692181,0.00027,2]
[391995988,1761069046295,-4178.15148848,0.00027,2]
[391996006,1761069070815,640.100529,0.00013699,2]
[391996007,1761069071255,640.100529,0.00020187,2]
[391996009,1761069104841,150.0,0.00020276,2]
[391996010,1761069105036,150.0,0.0002212,2]
[391996011,1761069105470,150.0,0.00023963,2]
[391996012,1761069124236,821.22447817,0.00024,30]
[391996013,1761069176378,237.49,0.00020129,2]
[391996014,1761069176773,474.97,0.00021959,2]
[391996015,1761069177437,712.46,0.00023789,2]
[391996016,1761069180630,150.0,0.00012852,30]
[391996017,1761069181038,203.56,0.00014021,30]
[391996018,1761069181462,305.34,0.00015189,30]
[391996019,1761069181874,407.12,0.00016358,30]
[391996020,1761069182257,508.9,0.00017526,30]
[391996021,1761069182643,610.68,0.00018695,30]
[391996022,1761069183083,712.46,0.00019863,30]
[391996023,1761069183526,814.24,0.00021031,30]
[391996024,1761069183973,916.02,0.000222,30]
[391996025,1761069184375,969.58359235,0.00023368,30]
[391996026,1761069251605,150.0,0.0002017,2]
[391996027,1761069251987,296.21,0.00022004,2]
[391996028,1761069252435,444.32,0.00023838,2]
[391996029,1761069256708,150.0,0.00013326,30]
[391996030,1761069257110,150.0,0.00014538,30]
[391996031,1761069257571,190.42,0.00015749,30]
[391996032,1761069258157,253.89,0.00016961,30]
[391996033,1761069258346,317.37,0.00018172,30]
[391996034,1761069258728,380.84,0.00019384,30]
[391996035,1761069259125,444.32,0.00020595,30]
[391996036,1761069259520,507.79,0.00021807,30]
[391996037,1761069259933,571.26,0.00023018,30]
[391996038,1761069328069,150.0,0.0002037,2]
[391996039,1761069328470,198.05,0.00022222,2]
[391996040,1761069332226,150.0,0.0001443,30]
[391996041,1761069332619,150.0,0.00015742,30]
[391996042,1761069333230,150.0,0.00017053,30]
[391996043,1761069333489,169.75,0.00018365,30]
[391996044,1761069333887,212.19,0.00019677,30]
[391996045,1761069334297,254.63,0.00020989,30]
[391996046,1761069334706,297.07,0.00022301,30]
[391996047,1761069335102,339.51,0.00023612,30]
[391996048,1761069404503,150.0,0.00020171,2]
[391996049,1761069404908,150.0,0.00022004,2]
[391996050,1761069405307,217.99,0.00023838,2]
[391996051,1761069408717,150.0,0.0001378,30]
[391996052,1761069409683,150.0,0.00015032,30]
[391996053,1761069410117,150.0,0.00016285,30]
[391996054,1761069410564,150.0,0.00017538,30]
[391996055,1761069411038,155.71,0.00018791,30]
[391996056,1761069411482,186.85,0.00020043,30]
[391996057,1761069412015,217.99,0.00021296,30]
[391996058,1761069412329,249.13,0.00022549,30]
[391996059,1761069412853,221.08,0.00023801,30]
[391996060,1761069446182,5000.0,0.00024073,2]
[391996061,1761069457763,417.15472785,0.00024073,2]
[391996062,1761069468593,5000.0,0.00024073,2]
[391996063,1761069480007,150.0,0.00020109,2]
[391996064,1761069480444,150.0,0.00021937,2]
[391996065,1761069480905,150.0,0.00023766,2]
[391996066,1761069484196,150.0,0.00014338,30]
[391996067,1761069484600,150.0,0.00015641,30]
[391996068,1761069484986,150.0,0.00016945,30]
[391996069,1761069485397,150.0,0.00018248,30]
[391996070,1761069485818,150.0,0.00019552,30]
[391996071,1761069491488,5000.0,0.00024073,2]
[391996072,1761069504117,860.0,0.00030137,120]
[391996073,1761069515072,5000.0,0.00024073,2]
[391996074,1761069537362,5000.0,0.00024073,2]
[391996075,1761069552626,150.0,0.00020094,2]
[391996076,1761069553947,150.0,0.00021921,2]
[391996077,1761069554353,150.0,0.00023747,2]
[391996078,1761069558070,150.0,0.00014371,30]
[391996079,1761069558532,150.0,0.00015677,30]
[391996080,1761069595980,320.89,0.00030136,120]
[391996081,1761069626318,150.0,0.00020462,2]
[391996082,1761069626770,150.0,0.00022322,2]
[391996083,1761069652425,162.0,0.00023,7]
[391996084,1761069699050,150.0,0.00020146,2]
[391996085,1761069699373,150.0,0.00021977,2]
[391996086,1761069699870,150.0,0.00023808,2]
[391996087,1761069739408,666.0,0.00024061,2]
[391996088,1761069756517,1799.37806946,0.00024073,2]
[391996089,1761069765068,5000.0,0.00024,2]
[391996090,1761069768523,150.0,0.00020054,2]
[391996091,1761069768917,150.0,0.00021877,2]
[391996092,1761069769349,150.0,0.000237,2]
[391996093,1761069771681,-318.06574789,0.00024073,2]
[391996094,1761069789006,-457.4733056,0.00024073,2]
[391996095,1761069792704,-429.36506362,0.00024073,2]
[391996096,1761069795156,-198.076796,0.00024073,2]
[391996097,1761069835170,150.0,0.00020054,2]
[391996098,1761069835566,150.0,0.00021877,2]
[391996099,1761069836014,150.0,0.000237,2]
[391996100,1761069902202,150.0,0.00020167,2]
[391996101,1761069952577,163.0,0.00022,2]
[391996102,1761069952867,1797.64101743,0.00024072,2]
[391996103,1761069975164,2844.16761893,0.00024072,2]
[391996104,1761069977606,437.35675954,0.00023723,2]
[391996106,1761070028102,3746.28849,0.00024072,2]
[391996107,1761070101014,274.15,0.00023684,6]
[391996144,1761070232095,-498.50344011,0.00024167,2]
[391996146,1761070232106,-153.0,0.00024216,2]
[391996148,1761070232116,-31.29056787,0.00024217,2]
[391996151,1761070232128,-121.70943213,0.00024217,2]
[391996153,1761070232139,-200.0,0.00024295,2]
[391996155,1761070232150,-462.0,0.00024338,2]
[391996157,1761070232160,-300.0,0.00024338,2]
[391996159,1761070232169,-300.0,0.00024338,2]
[391996161,1761070232179,-300.0,0.00024338,2]
[391996163,1761070232188,-300.0,0.00024338,2]
[391996165,1761070232198,-300.0,0.00024338,2]
[391996166,1761070232208,-1200.0,0.00024338,2]
[391996169,1761070232218,-21690.6701059,0.00024339,2]
[391996171,1761070232227,-160.0,0.00024648,2]
[391996172,1761070232237,-7352.79768005,0.00024887,2]
[391996175,1761070232253,-857.279338,0.00024887,2]
[391996178,1761070232273,-2016.25259506,0.00024887,2]
[391996180,1761070232284,-282.34546992,0.00024887,2]
[391996182,1761070232295,-395.15453008,0.00024887,2]
[391996497,1761070238099,-196.66107714,0.00024887,2]
[391996499,1761070238109,-287.08892286,0.00024933,2]
[391996508,1761070238214,-212.91107714,0.00024933,2]
[391996510,1761070238224,-588.23405933,0.00025167,2]
[391996512,1761070238234,-422.36876906,0.00025241,2]
[391996514,1761070238247,-372.30564732,0.00025251,2]
[391996515,1761070238259,-369.57267293,0.00025257,2]
[391996516,1761070238273,-862.130555,0.00025269,2]
[391996517,1761070238285,-547.1,0.0002597,10]
[391996518,1761070238296,-500.0,0.00025974,2]
[391996519,1761070238308,-500.0,0.00025974,2]
[391996520,1761070238318,-500.0,0.00025974,2]
[391996521,1761070238327,-500.0,0.00025974,2]
[391996522,1761070238337,-500.0,0.00025974,2]
[391996523,1761070238346,-198.97225457,0.00025974,2]
[391996524,1761070238357,-500.0,0.00025974,2]
[391996525,1761070238366,-500.0,0.00025974,2]
[391996526,1761070238375,-500.0,0.00025974,2]
[391996527,1761070238385,-263.85291005,0.00025974,2]
[391996528,1761070238395,-514.84070869,0.00025974,2]
[391996529,1761070238405,-234.28532605,0.00025979,2]
[391996530,1761070238415,-407.45003193,0.00025979,2]
[391996531,1761070238424,-500.0,0.00025979,2]
[391996532,1761070238434,-557.91838805,0.00025979,2]
[391996533,1761070238444,-6846.91283949,0.0002598,2]
[391996534,1761070238456,-3414.96342489,0.0002598,2]
[391996535,1761070238468,-2193.4165003,0.0002598,2]
[391996586,1761070240394,-3e-08,0.0002597,10]
[391996589,1761070240406,-455.91999997,0.0002597,10]
[391996591,1761070240416,-1253.01,0.0002598,3]
[391996593,1761070240425,-9290.65741515,0.0002598,2]
[391996595,1761070240437,-33411.82264191,0.0002598,2]
[391996598,1761070240456,-16321.61933848,0.0002598,2]
[391996631,1761070246462,-150.0,0.00025186,2]
[391996632,1761070246471,-12101.25566967,0.0002598,2]
[391996633,1761070246483,-5240.146,0.0002598,2]
[391996634,1761070287464,137.4061141,0.00020344,2]
[391996635,1761070287495,12.5938859,0.00020344,2]
[391996636,1761070287904,261.39,0.00022193,2]
[391996637,1761070288300,392.08,0.00024042,2]
[391996638,1761070291817,150.0,0.00013216,30]
[391996639,1761070292075,150.0,0.00014417,30]
[391996640,1761070292474,168.03,0.00015619,30]
[391996641,1761070292909,224.05,0.0001682,30]
[391996642,1761070293307,280.06,0.00018022,30]
[391996643,1761070293886,336.07,0.00019223,30]
[391996644,1761070294299,392.08,0.00020424,30]
[391996645,1761070294687,448.09,0.00021626,30]
[391996646,1761070295087,504.1,0.00022827,30]
[391996647,1761070296066,408.826796,0.00024029,30]
[391996648,1761070363377,150.0,0.00020399,2]
[391996649,1761070363823,163.01,0.00022254,2]
[391996650,1761070367852,150.0,0.00013067,30]
[391996651,1761070368253,150.0,0.00014255,30]
[391996652,1761070369063,150.0,0.00015443,30]
[391996653,1761070369275,150.0,0.00016631,30]
[391996654,1761070369673,174.65,0.00017819,30]
[391996655,1761070370115,209.58,0.00019007,30]
[391996656,1761070370551,244.51,0.00020195,30]
[391996657,1761070370946,279.45,0.00021383,30]
[391996658,1761070371403,314.38,0.00022571,30]
[391996659,1761070426496,500.0,0.00030137,120]
[391996660,1761070435922,500.0,0.00030137,120]
[391996661,1761070439141,150.0,0.00020417,2]
[391996662,1761070439574,150.0,0.00022273,2]
[391996663,1761070445806,150.0,0.00013162,30]
[391996664,1761070446197,150.0,0.00014359,30]
[391996665,1761070446584,150.0,0.00015556,30]
[391996666,1761070447018,150.0,0.00016752,30]
[391996667,1761070447397,150.0,0.00017949,30]
[391996668,1761070447792,150.0,0.00019145,30]
[391996669,1761070448250,174.43,0.00020342,30]
[391996670,1761070448749,170.51,0.00021538,30]
[391996671,1761070470629,196.0,0.00018,2]
[391996672,1761070470907,196.0,0.00018025,2]
[391996673,1761070471092,196.0,0.0001805,2]
[391996674,1761070471293,196.0,0.00018075,2]
[391996675,1761070471502,201.90505123,0.000181,2]
[391996676,1761070516353,150.0,0.00020302,2]
[391996677,1761070516857,150.0,0.00022147,2]
[391996678,1761070517285,150.0,0.00023993,2]